bitfinex/quotes_BTCUSD_20220115
["timestamp","ask_amount","ask_price","bid_price","bid_amount"]
[1642262439661,0.27737185,43411.0,43401.0,0.374699]
[1642262439662,0.00010314,43403.0,43401.0,0.374699]
[1642262440060,8.595e-05,43402.0,43401.0,0.369699]
[1642262440462,8.595e-05,43402.0,43401.0,1.919699]
[1642262441464,8.595e-05,43402.0,43401.0,2.669699]
[1642262442437,5.95e-06,43402.0,43401.0,2.97093283]
[1642262442635,5.95e-06,43402.0,43401.0,3.07093283]
[1642262443035,5.95e-06,43402.0,43401.0,3.06093283]
[1642262443335,5.95e-06,43402.0,43401.0,2.96220734]
[1642262443536,5.95e-06,43402.0,43401.0,3.06220734]
[1642262443836,5.95e-06,43402.0,43401.0,2.96220734]
[1642262444437,5.95e-06,43402.0,43401.0,3.01980834]
[1642262445436,5.95e-06,43402.0,43401.0,3.11980834]
[1642262446070,5.95e-06,43402.0,43401.0,3.21980834]
[1642262446265,5.95e-06,43402.0,43401.0,4.48610834]
[1642262446663,0.00050911,43416.0,43406.0,0.115162]
[1642262446868,0.00050911,43416.0,43415.0,3.18600785]
[1642262447062,0.00050911,43416.0,43415.0,3.54570685]
[1642262447268,0.26650117,43425.0,43418.0,0.4157599]
[1642262447462,0.6879256,43431.0,43420.0,0.00128998]
[1642262447763,0.00037818,43424.0,43420.0,0.00128998]
[1642262447963,0.00037818,43424.0,43421.0,0.374699]
[1642262448162,0.6879256,43431.0,43421.0,0.374699]
[1642262448163,0.00036099,43423.0,43421.0,0.374699]
[1642262448462,0.26993009,43428.0,43422.0,1.14064023]
[1642262448666,0.00050314,43424.0,43422.0,0.29064023]
[1642262449465,0.00050314,43424.0,43420.0,0.00128998]
[1642262449665,0.26993009,43428.0,43420.0,0.00128998]
[1642262449916,0.0005713,43424.0,43415.0,0.00121701]
[1642262450112,0.0005713,43424.0,43416.0,0.374699]
[1642262450312,0.00036099,43423.0,43416.0,0.374699]
[1642262450515,0.26162318,43422.0,43419.0,0.25938146]
[1642262450713,0.26196698,43422.0,43419.0,0.25938146]
[1642262450916,0.00032661,43421.0,43419.0,0.25938146]
[1642262451114,0.00032661,43421.0,43420.0,1.124699]
[1642262451314,0.00057418,43423.0,43420.0,1.124699]
[1642262451713,0.0003438,43422.0,43420.0,1.124699]
[1642262452114,0.00032661,43421.0,43420.0,1.124699]
[1642262452314,0.00032661,43421.0,43420.0,1.724699]
[1642262452516,0.00032661,43421.0,43420.0,1.124699]
[1642262453413,0.00032661,43421.0,43420.0,0.374699]
[1642262453860,0.00032661,43421.0,43420.0,0.369699]
[1642262454263,0.00032661,43421.0,43419.0,0.25938146]
[1642262454665,0.00030942,43420.0,43419.0,0.25938146]
[1642262454862,0.00030942,43420.0,43419.0,0.63403346]
[1642262455166,0.00030942,43420.0,43419.0,0.374652]
[1642262455464,0.31325579,43425.0,43415.0,0.00121701]
[1642262455763,6.876e-05,43424.0,43416.0,6.876e-05]
[1642262456163,6.876e-05,43424.0,43418.0,0.26645718]
[1642262457165,0.00046131,43424.0,43418.0,0.26645718]
[1642262457425,0.00046131,43424.0,43416.0,6.876e-05]
[1642262457426,0.32284186,43420.0,43416.0,6.876e-05]
[1642262457625,0.30415252,43424.0,43416.0,6.876e-05]
[1642262458024,0.10006876,43424.0,43416.0,6.876e-05]
[1642262458225,0.10006876,43424.0,43417.0,0.374652]
[1642262458226,0.0004613,43424.0,43417.0,0.374652]
[1642262458823,0.0004613,43424.0,43418.0,0.27854367]
[1642262459027,0.0004613,43424.0,43416.0,6.876e-05]
[1642262459028,0.0004613,43424.0,43421.0,0.00125926]
[1642262459227,6.876e-05,43424.0,43423.0,0.0012189]
[1642262459429,6.876e-05,43424.0,43423.0,3.30461252]
[1642262459626,6.876e-05,43424.0,43423.0,3.1221709]
[1642262459926,6.876e-05,43424.0,43423.0,3.0221709]
[1642262460127,6.876e-05,43424.0,43423.0,3.33638912]
[1642262460728,6.876e-05,43424.0,43423.0,3.39395712]
[1642262460926,6.876e-05,43424.0,43423.0,3.33638912]
[1642262461559,6.876e-05,43424.0,43423.0,0.73638912]
[1642262461761,6.876e-05,43424.0,43423.0,0.4221709]
[1642262462259,6.876e-05,43424.0,43423.0,2.10307846]
[1642262462562,6.876e-05,43424.0,43423.0,1.8221709]
[1642262462760,0.23006876,43424.0,43423.0,1.8221709]
[1642262463359,0.23006876,43424.0,43423.0,0.4221709]
[1642262464160,0.23006876,43424.0,43423.0,0.9221709]
[1642262464360,0.23006876,43424.0,43423.0,0.4221709]
[1642262465211,0.23006876,43424.0,43423.0,0.420952]
[1642262466609,0.23006876,43424.0,43423.0,0.42220742]
[1642262467209,0.23006876,43424.0,43423.0,2.70972149]
[1642262468566,0.23006876,43424.0,43423.0,0.42220742]
[1642262469266,0.23006876,43424.0,43423.0,1.02220742]
[1642262470067,0.22506876,43424.0,43423.0,2.75785343]
[1642262470469,0.22506876,43424.0,43423.0,1.30785343]
[1642262470670,0.22006876,43424.0,43423.0,2.60785343]
[1642262471667,0.22006876,43424.0,43423.0,1.30785343]
[1642262471870,0.22006876,43424.0,43423.0,1.02220742]
[1642262472069,0.22006876,43424.0,43423.0,1.72220742]
[1642262472513,0.09000483,43424.0,43423.0,3.02220742]
[1642262472814,0.00065769,43426.0,43425.0,0.05883393]
[1642262473013,0.00065769,43426.0,43425.0,3.33958514]
[1642262473617,0.00010315,43430.0,43425.0,3.33958514]
[1642262473818,0.0006577,43428.0,43426.0,0.65208039]
[1642262474019,0.0006577,43428.0,43427.0,2.85323616]
[1642262474416,0.00072647,43428.0,43427.0,2.85323616]
[1642262474617,0.00072647,43428.0,43427.0,0.374652]
[1642262475018,6.877e-05,43428.0,43427.0,0.374652]
[1642262476863,6.877e-05,43428.0,43421.0,0.2934]
[1642262477065,6.877e-05,43428.0,43418.0,0.00010153]
[1642262477261,6.877e-05,43428.0,43419.0,0.369652]
[1642262477464,6.877e-05,43428.0,43419.0,0.36973795]
[1642262477665,0.25041315,43423.0,43420.0,6.876e-05]
[1642262477866,0.25041315,43423.0,43421.0,0.374638]
[1642262478472,0.25041315,43423.0,43419.0,8.595e-05]
[1642262478766,0.26873102,43422.0,43419.0,8.595e-05]
[1642262479166,0.25041315,43423.0,43419.0,8.595e-05]
[1642262480017,0.25041315,43423.0,43420.0,0.374638]
[1642262480418,0.25041315,43423.0,43419.0,8.595e-05]
[1642262482517,0.25041315,43423.0,43420.0,0.374638]
[1642262483120,0.25041315,43423.0,43419.0,8.595e-05]
[1642262483319,0.32380264,43420.0,43419.0,8.595e-05]
[1642262483565,0.25041315,43423.0,43419.0,8.595e-05]
[1642262485963,0.28085797,43420.0,43419.0,8.595e-05]
[1642262486168,0.35041315,43423.0,43419.0,8.595e-05]
[1642262486363,0.35041315,43423.0,43412.0,0.00129286]
[1642262486565,0.28049233,43422.0,43412.0,0.00129286]
[1642262486766,0.28049233,43422.0,43413.0,0.00010314]
[1642262486967,0.30756376,43414.0,43413.0,0.00010314]
[1642262487165,0.30756376,43414.0,43412.0,0.00012033]
[1642262487414,0.30756376,43414.0,43413.0,0.824638]
[1642262487608,0.28049233,43422.0,43413.0,0.824638]
[1642262487809,0.00187893,43424.0,43413.0,0.45]
[1642262488010,0.00187893,43424.0,43414.0,8.595e-05]
[1642262488309,6.877e-05,43423.0,43415.0,0.38219151]
[1642262488509,6.877e-05,43423.0,43419.0,0.29636237]
[1642262488714,0.24691484,43421.0,43414.0,8.595e-05]
[1642262489510,0.25510572,43420.0,43414.0,8.595e-05]
[1642262489710,0.53420699,43420.0,43414.0,8.595e-05]
[1642262490109,0.62440683,43420.0,43412.0,0.00012033]
[1642262490510,0.52440683,43420.0,43412.0,0.00012033]
[1642262490709,0.34063925,43413.0,43412.0,0.31999665]
[1642262490910,0.34063925,43413.0,43412.0,0.37475833]
[1642262491358,0.34063925,43413.0,43412.0,0.00012033]
[1642262493556,0.60031625,43413.0,43412.0,0.00012033]
[1642262493755,0.34063925,43413.0,43412.0,0.00012033]
[1642262494065,0.61229733,43413.0,43412.0,0.00012033]
[1642262494257,0.96444437,43413.0,43410.0,0.02946867]
[1642262494458,0.26752416,43412.0,43410.0,0.02946867]
[1642262494661,0.00124382,43411.0,43410.0,0.02946867]
[1642262494918,0.42218182,43411.0,43410.0,0.02946867]
[1642262495112,0.52218182,43411.0,43410.0,0.02946867]
[1642262495312,0.52218182,43411.0,43410.0,0.0285016]
[1642262495612,1.52218182,43411.0,43408.0,0.00086556]
[1642262495813,0.432258,43410.0,43408.0,0.00086556]
[1642262496012,0.04756774,43409.0,43408.0,0.00086556]
[1642262496212,0.42220574,43409.0,43408.0,0.00086556]
[1642262496413,0.42220574,43409.0,43408.0,6.876e-05]
[1642262496617,0.52220574,43409.0,43408.0,6.876e-05]
[1642262496914,0.52220574,43409.0,43405.0,0.00744133]
[1642262496915,0.00127577,43407.0,43406.0,0.000939]
[1642262497113,0.43353435,43407.0,43406.0,0.000939]
[1642262497316,0.00126543,43406.0,43400.0,0.00247341]
[1642262497716,0.00126543,43406.0,43401.0,8.595e-05]
[1642262497916,0.00121699,43402.0,43401.0,8.595e-05]
[1642262498116,0.57114921,43402.0,43400.0,0.00010314]
[1642262498318,0.2727504,43402.0,43400.0,0.00010314]
[1642262498964,0.5027504,43402.0,43400.0,0.00010314]
[1642262499361,0.50153341,43402.0,43401.0,0.924638]
[1642262499961,0.50153341,43402.0,43401.0,0.374638]
[1642262500161,0.50153341,43402.0,43401.0,0.75503499]
[1642262500361,0.50153341,43402.0,43401.0,0.00503499]
[1642262500562,0.50143189,43402.0,43401.0,0.00503499]
[1642262501161,0.50143189,43402.0,43401.0,0.01006998]
[1642262502160,0.50143189,43402.0,43401.0,0.00776517]
[1642262502411,0.50143189,43402.0,43401.0,0.00503499]
[1642262502611,0.23,43402.0,43401.0,0.00503499]
[1642262503412,0.49252875,43402.0,43401.0,0.00503499]
[1642262503612,0.59252875,43402.0,43401.0,0.00503499]
[1642262503812,0.49252875,43402.0,43401.0,0.00503499]
[1642262504013,0.23,43402.0,43401.0,0.00503499]
[1642262504213,0.56880196,43402.0,43401.0,0.0073398]
[1642262504417,0.94343996,43402.0,43401.0,0.01006998]
[1642262504617,1.04468478,43402.0,43401.0,0.01006998]
[1642262505414,1.10231578,43402.0,43401.0,0.00776517]
[1642262505616,0.94468478,43402.0,43401.0,0.00503499]
[1642262505917,0.94343996,43402.0,43401.0,0.00503499]
[1642262506361,0.94113515,43402.0,43401.0,0.00503499]
[1642262506758,0.93840497,43402.0,43401.0,0.00503499]
[1642262506962,0.60960301,43402.0,43401.0,0.00503499]
[1642262507158,0.23496501,43402.0,43401.0,0.00503499]
[1642262507559,0.23496501,43402.0,43401.0,0.37967299]
[1642262509061,0.23496501,43402.0,43401.0,0.00503499]
[1642262509467,0.51678501,43402.0,43398.0,0.24768486]
[1642262509663,0.51678501,43402.0,43396.0,0.24768486]
[1642262509664,0.00121954,43397.0,43396.0,0.24768486]
[1642262509911,0.41391533,43397.0,43396.0,0.13188486]
[1642262510113,0.88855333,43397.0,43396.0,6.876e-05]
[1642262510413,0.88855333,43397.0,43392.0,0.00013752]
[1642262510613,0.43228123,43396.0,43392.0,0.00013752]
[1642262510812,0.0463,43395.0,43392.0,0.00013752]
[1642262511215,0.25779371,43393.0,43392.0,0.00013752]
[1642262511413,0.63243171,43393.0,43392.0,0.00013752]
[1642262511613,0.73243171,43393.0,43392.0,0.00013752]
[1642262511815,0.73243171,43393.0,43390.0,0.24768486]
[1642262511816,1.9,43392.0,43390.0,0.24768486]
[1642262512120,0.057649,43388.0,43376.0,0.77212948]
[1642262512314,0.25609051,43379.0,43375.0,0.77212948]
[1642262512514,0.25609051,43379.0,43378.0,0.00024066]
[1642262512912,0.5143388,43379.0,43378.0,0.00024066]
[1642262513112,0.25824829,43379.0,43378.0,0.00024066]
[1642262513313,0.44923736,43383.0,43378.0,0.00024066]
[1642262513567,0.0463,43383.0,43378.0,0.00024066]
[1642262513768,0.057649,43388.0,43378.0,0.00024066]
[1642262513769,0.4031197,43392.0,43379.0,0.374638]
[1642262513967,0.0463,43391.0,43378.0,0.00126169]
[1642262514169,0.32850173,43390.0,43383.0,0.27528902]
[1642262514372,0.0463,43390.0,43384.0,0.28333959]
[1642262514571,0.0463,43390.0,43384.0,0.00013752]
[1642262514773,0.0463,43390.0,43385.0,0.00012033]
[1642262514968,0.0463,43390.0,43384.0,0.00107104]
[1642262515170,0.0463,43390.0,43385.0,0.00012033]
[1642262515369,0.28523288,43389.0,43385.0,0.00012033]
[1642262515973,0.374638,43388.0,43385.0,0.00105384]
[1642262516172,0.474638,43388.0,43385.0,0.00093351]
[1642262516373,0.474638,43388.0,43386.0,0.00010314]
[1642262516573,1.09548705,43387.0,43386.0,0.00010314]
[1642262516771,1.51642505,43387.0,43386.0,0.00010314]
[1642262516974,2.05008752,43387.0,43386.0,0.00010314]
[1642262517172,2.05129964,43387.0,43386.0,0.00010314]
[1642262517417,1.75581259,43387.0,43384.0,0.00093352]
[1642262517614,1.60309958,43385.0,43384.0,0.00093352]
[1642262517814,1.97773758,43385.0,43384.0,0.00093352]
[1642262518015,2.07773758,43385.0,43384.0,0.00107104]
[1642262518214,2.07773758,43385.0,43384.0,0.00013752]
[1642262518614,1.12773758,43385.0,43382.0,0.00093354]
[1642262518814,1.12773758,43385.0,43383.0,0.00015471]
[1642262518815,0.374638,43384.0,43383.0,0.00015471]
[1642262519413,0.62977769,43384.0,43383.0,0.00015471]
[1642262519813,0.62977769,43384.0,43381.0,0.00093356]
[1642262520018,0.62977769,43384.0,43382.0,0.0001719]
[1642262520216,0.26132871,43383.0,43382.0,0.0001719]
[1642262520415,0.6372476,43383.0,43382.0,0.0001719]
[1642262520616,0.47591889,43383.0,43382.0,0.0001719]
[1642262521066,0.47591889,43383.0,43380.0,0.00093357]
[1642262521264,0.432295,43382.0,43381.0,0.00018909]
[1642262521564,1.282295,43382.0,43381.0,0.00018909]
[1642262521778,0.92986461,43382.0,43381.0,0.00018909]
[1642262521965,1.19322962,43382.0,43381.0,0.00018909]
[1642262522166,1.19322962,43382.0,43379.0,0.00093358]
[1642262522167,1.27551062,43382.0,43379.0,0.00093358]
[1642262522467,1.79532671,43381.0,43380.0,0.00020628]
[1642262522672,2.37486852,43381.0,43380.0,0.00020628]
[1642262523067,0.173465,43379.0,43378.0,0.00093359]
[1642262523268,0.374638,43375.0,43374.0,0.24861845]
[1642262523468,0.5131091,43375.0,43374.0,0.24861845]
[1642262523668,0.6131091,43375.0,43374.0,0.00010314]
[1642262524070,1.55104169,43375.0,43373.0,0.00012033]
[1642262524270,0.374638,43374.0,43373.0,0.00012033]
[1642262524468,0.42218076,43374.0,43373.0,0.00012033]
[1642262524668,0.52218076,43374.0,43370.0,0.0001719]
[1642262525513,0.1463,43374.0,43370.0,0.0001719]
[1642262525711,0.0463,43374.0,43368.0,0.00020628]
[1642262526112,0.0463,43374.0,43365.0,0.00025785]
[1642262526313,0.99275067,43372.0,43365.0,0.00025785]
[1642262526513,0.0463,43371.0,43365.0,0.00025785]
[1642262526913,0.0463,43371.0,43366.0,0.68637002]
[1642262526914,0.30092236,43371.0,43366.0,0.68637002]
[1642262527114,0.30149841,43371.0,43366.0,0.68637002]
[1642262527311,0.40149841,43371.0,43367.0,0.00022347]
[1642262527511,0.25599545,43368.0,43367.0,0.00022347]
[1642262527712,0.32561448,43369.0,43367.0,0.00022347]
[1642262528114,0.1,43369.0,43367.0,0.00022347]
[1642262528314,0.0463,43371.0,43366.0,0.00024066]
[1642262529167,0.0463,43371.0,43366.0,0.0011744]
[1642262529369,0.0463,43371.0,43366.0,0.00093374]
[1642262529569,0.69042402,43376.0,43367.0,0.00022347]
[1642262529770,0.68542402,43376.0,43367.0,0.00022347]
[1642262529970,0.68542402,43377.0,43375.0,0.29378968]
[1642262530168,0.68542402,43377.0,43367.0,0.00022347]
[1642262530169,0.374638,43376.0,43367.0,0.00022347]
[1642262530368,0.68542402,43377.0,43376.0,6.876e-05]
[1642262530572,0.68542402,43377.0,43365.0,0.55866218]
[1642262530769,0.23,43371.0,43370.0,0.00010314]
[1642262530969,0.22935,43371.0,43370.0,0.00010314]
[1642262531167,0.22935,43371.0,43370.0,0.30511415]
[1642262531369,0.5147279,43371.0,43368.0,0.00013752]
[1642262531572,0.00120387,43369.0,43368.0,0.00013752]
[1642262531768,0.00120387,43369.0,43363.0,0.77212948]
[1642262531769,0.04750387,43369.0,43363.0,0.77235295]
[1642262531968,0.04750387,43369.0,43364.0,0.00020628]
[1642262532431,0.2724438,43367.0,43364.0,0.00020628]
[1642262532631,0.38693296,43366.0,43364.0,0.00020628]
[1642262532831,0.00124468,43365.0,43364.0,0.0007399]
[1642262533032,0.84754468,43365.0,43364.0,0.0007399]
[1642262533236,1.29060158,43365.0,43364.0,0.0007399]
[1642262533432,0.374638,43364.0,43363.0,0.24715126]
[1642262533634,0.420938,43364.0,43362.0,0.0005336]
[1642262533834,1.09090258,43363.0,43362.0,0.0005336]
[1642262534032,1.23720258,43363.0,43362.0,0.0005336]
[1642262534333,1.35300258,43363.0,43362.0,0.0005336]
[1642262534933,1.35425804,43363.0,43362.0,0.0005336]
[1642262535134,1.48478561,43363.0,43362.0,0.0005336]
[1642262535436,2.86378561,43363.0,43362.0,0.0005336]
[1642262535634,2.06378561,43363.0,43362.0,0.0005336]
[1642262535839,1.77566478,43363.0,43362.0,0.0005336]
[1642262536466,2.12566478,43363.0,43362.0,0.0005336]
[1642262536864,2.22566478,43363.0,43362.0,0.0005336]
[1642262537065,2.08759721,43363.0,43362.0,0.0005336]
[1642262537665,1.98759721,43363.0,43362.0,0.0005336]
[1642262538267,2.54603036,43363.0,43362.0,0.0005336]
[1642262538666,0.6,43362.0,43353.0,0.28494194]
[1642262538867,0.420938,43361.0,43352.0,0.00373593]
[1642262539067,0.40488052,43356.0,43354.0,0.00017191]
[1642262539371,0.0463,43357.0,43354.0,0.00017191]
[1642262539813,0.27743572,43355.0,43354.0,0.00017191]
[1642262540217,0.69004422,43355.0,43352.0,0.00020629]
[1642262540415,0.057694,43354.0,43352.0,0.69086297]
[1642262540615,0.32683858,43353.0,43352.0,0.69086297]
[1642262540813,0.32683858,43353.0,43352.0,0.69065668]
[1642262541018,0.47118446,43353.0,43352.0,0.69065668]
[1642262541416,0.47118446,43353.0,43350.0,0.446]
[1642262541616,0.47118446,43353.0,43346.0,0.69065668]
[1642262541814,0.47118446,43353.0,43351.0,0.00022348]
[1642262542015,0.25720056,43352.0,43351.0,0.00022348]
[1642262542416,0.30471614,43352.0,43351.0,0.00022348]
[1642262542614,0.14751558,43352.0,43351.0,0.00022348]
[1642262543416,0.0463,43352.0,43351.0,0.00022348]
[1642262543870,0.59013241,43356.0,43349.0,0.00119181]
[1642262544269,0.59013241,43356.0,43350.0,0.00024067]
[1642262544470,0.28383344,43354.0,43350.0,0.00024067]
[1642262544670,0.1158,43354.0,43351.0,0.00093393]
[1642262545070,0.0463,43353.0,43352.0,0.00020629]
[1642262545274,1.99885978,43351.0,43348.0,0.59201819]
[1642262545471,2.04515978,43351.0,43348.0,0.59201819]
[1642262545672,2.04515978,43351.0,43349.0,0.59201819]
[1642262545871,2.04515978,43351.0,43349.0,0.58701819]
[1642262546470,2.14515978,43351.0,43347.0,0.69065668]
[1642262546670,2.14515978,43351.0,43341.0,0.77212948]
[1642262546671,0.26568997,43350.0,43344.0,0.69065668]
[1642262546871,0.26568997,43350.0,43344.0,0.68572544]
[1642262547071,0.26568997,43350.0,43345.0,0.000934]
[1642262547322,2.14515978,43351.0,43345.0,0.000934]
[1642262547715,0.32356573,43347.0,43345.0,0.000934]
[1642262548016,0.42356573,43347.0,43345.0,0.000934]
[1642262548215,0.31686094,43346.0,43343.0,0.68572544]
[1642262548516,0.41686094,43346.0,43344.0,0.00100277]
[1642262548716,0.1,43346.0,43343.0,0.67172821]
[1642262549115,0.32356573,43347.0,43343.0,0.67172821]
[1642262549316,0.42356573,43347.0,43336.0,1.21812948]
[1642262549519,0.0463,43346.0,43336.0,1.21812948]
[1642262549718,0.0463,43346.0,43337.0,0.00012033]
[1642262549719,0.00126184,43344.0,43337.0,0.00012033]
[1642262549915,0.02203184,43344.0,43337.0,0.00012033]
[1642262550115,0.02203184,43344.0,43337.0,0.6081112]
[1642262550116,0.07973707,43344.0,43337.0,0.6081112]
[1642262550316,0.31020429,43343.0,43338.0,0.27053557]
[1642262550516,0.69756697,43343.0,43338.0,0.00010314]
[1642262550719,0.41020429,43343.0,43339.0,8.595e-05]
[1642262550920,0.41020429,43343.0,43338.0,0.00010314]
[1642262551159,0.40002473,43340.0,43338.0,0.00010314]
[1642262551565,0.1,43340.0,43338.0,0.00010314]
[1642262551759,0.31020429,43343.0,43338.0,0.00010314]
[1642262551959,0.00126184,43344.0,43338.0,0.00010314]
[1642262552260,0.05770478,43344.0,43338.0,0.00010314]
[1642262552463,0.05770478,43344.0,43337.0,0.60402811]
[1642262552659,8.595e-05,43343.0,43337.0,0.60402811]
[1642262552861,8.595e-05,43343.0,43337.0,0.60309401]
[1642262553060,6.876e-05,43342.0,43337.0,0.60309401]
[1642262553259,6.876e-05,43342.0,43338.0,0.00093408]
[1642262553260,0.08790876,43342.0,43338.0,0.00093408]
[1642262553460,0.08784,43342.0,43338.0,0.00093408]
[1642262554066,0.45832782,43339.0,43336.0,0.446]
[1642262554267,0.45832782,43339.0,43338.0,0.00093408]
[1642262554268,0.05899788,43339.0,43338.0,0.00093408]
[1642262554566,0.15899788,43339.0,43338.0,0.00093408]
[1642262555031,0.10128591,43339.0,43338.0,0.00093408]
[1642262555235,0.4,43338.0,43337.0,0.58811018]
[1642262555431,0.057715,43338.0,43337.0,0.58811018]
[1642262555631,0.057715,43338.0,43336.0,0.446]
[1642262555632,0.157715,43338.0,43336.0,0.4469341]
[1642262556132,0.1,43338.0,43336.0,0.4469341]
[1642262556334,0.0463,43340.0,43336.0,0.4469341]
[1642262556531,0.5,43339.0,43336.0,0.446]
[1642262556734,0.5,43339.0,43336.0,0.44693411]
[1642262556931,0.6,43339.0,43336.0,0.44693411]
[1642262557831,0.1,43339.0,43336.0,0.446]
[1642262558031,0.0463,43340.0,43336.0,0.446]
[1642262558232,0.0463,43340.0,43335.0,0.00093411]
[1642262558571,0.0463,43340.0,43334.0,0.57318149]
[1642262558770,0.1158,43342.0,43334.0,0.57318149]
[1642262558973,0.1158,43342.0,43334.0,0.28719325]
[1642262558974,0.75961053,43341.0,43334.0,0.28719325]
[1642262559174,0.85961053,43341.0,43334.0,0.28719325]
[1642262559775,0.05771068,43340.0,43334.0,0.28719325]
[1642262559975,0.34246524,43338.0,43334.0,0.28719325]
[1642262560173,0.44246524,43338.0,43334.0,0.28719325]
[1642262560373,0.1,43338.0,43334.0,0.28719325]
[1642262560675,0.50073876,43339.0,43334.0,0.28719325]
[1642262560874,0.60073876,43339.0,43334.0,0.28719325]
[1642262561076,0.60073876,43339.0,43334.0,0.28219325]
[1642262561274,0.6,43339.0,43334.0,0.28219325]
[1642262561476,0.50073875,43339.0,43334.0,0.28219325]
[1642262561677,0.00073875,43339.0,43334.0,0.28219325]
[1642262562518,0.3458,43342.0,43335.0,0.38232209]
[1642262562717,0.00073875,43339.0,43335.0,0.38232209]
[1642262563319,0.00073875,43339.0,43334.0,0.28219325]
[1642262563720,0.4458,43342.0,43334.0,0.28219325]
[1642262564021,0.00073875,43339.0,43334.0,0.28219325]
[1642262564426,0.00073875,43339.0,43335.0,0.28093562]
[1642262564820,0.00073875,43339.0,43336.0,0.3340389]
[1642262565021,0.93459701,43342.0,43336.0,0.3340389]
[1642262565221,0.00073876,43339.0,43334.0,0.28219325]
[1642262565621,0.00073876,43339.0,43335.0,0.59228885]
[1642262566067,0.61602836,43342.0,43335.0,0.59228885]
[1642262566266,0.00073876,43339.0,43335.0,0.59228885]
[1642262566467,0.00073876,43339.0,43334.0,0.8744821]
[1642262566667,0.00073876,43339.0,43334.0,1.14870872]
[1642262566866,0.00073876,43339.0,43335.0,0.374638]
[1642262567266,0.3458,43342.0,43335.0,0.374638]
[1642262567472,0.23,43342.0,43335.0,0.86604375]
[1642262567770,0.00073876,43339.0,43335.0,0.86604375]
[1642262567969,0.00073876,43339.0,43336.0,0.374638]
[1642262568269,0.00073876,43339.0,43338.0,2.19228885]
[1642262568469,0.00073876,43339.0,43338.0,2.56692685]
[1642262568669,0.00073877,43341.0,43338.0,2.56692685]
[1642262568868,0.00073877,43341.0,43340.0,1.25]
[1642262569068,0.00073877,43341.0,43340.0,0.724638]
[1642262569467,0.00073877,43341.0,43340.0,0.374638]
[1642262569674,0.00073877,43341.0,43339.0,0.37113636]
[1642262569935,0.23,43342.0,43341.0,1.19761226]
[1642262570136,0.23,43342.0,43341.0,0.62225026]
[1642262570338,0.23006876,43342.0,43341.0,0.24761226]
[1642262570736,0.23006876,43342.0,43341.0,0.51327744]
[1642262570936,0.23006876,43342.0,43341.0,1.16327744]
[1642262571137,0.23006876,43342.0,43341.0,1.53791544]
[1642262571339,0.23006876,43342.0,43341.0,0.62225026]
[1642262571538,0.23006876,43342.0,43341.0,0.24761226]
[1642262572345,0.23006876,43342.0,43341.0,0.55003933]
[1642262573968,0.23006876,43342.0,43341.0,0.24761226]
[1642262574971,0.23006876,43342.0,43341.0,0.54267152]
[1642262577915,0.23006876,43342.0,43341.0,1.94267152]
[1642262578113,0.23006876,43342.0,43341.0,2.31730952]
[1642262578612,0.23006876,43342.0,43341.0,2.90957363]
[1642262578815,0.23006876,43342.0,43341.0,1.50957363]
[1642262579813,0.23006876,43342.0,43341.0,0.91730952]
[1642262580017,0.23006876,43342.0,43341.0,0.91706952]
[1642262580417,0.23006876,43342.0,43341.0,1.50933363]
[1642262581368,0.23006876,43342.0,43341.0,1.21427437]
[1642262581569,0.23006876,43342.0,43341.0,0.83963637]
[1642262581765,0.23006876,43342.0,43341.0,0.24737226]
[1642262581965,0.23006876,43342.0,43341.0,0.34737226]
[1642262582166,0.23006876,43342.0,43341.0,0.44737226]
[1642262582368,0.23006876,43342.0,43341.0,0.2]
[1642262582570,0.22806876,43342.0,43341.0,0.2]
[1642262583168,0.22806876,43342.0,43341.0,0.45609677]
[1642262583367,0.22606876,43342.0,43341.0,0.45609677]
[1642262583567,0.22606876,43342.0,43341.0,0.2]
[1642262583968,0.22406876,43342.0,43341.0,0.2]
[1642262584569,0.22206876,43342.0,43341.0,0.2]
[1642262585222,0.22006876,43342.0,43341.0,0.2]
[1642262585419,0.22006876,43342.0,43341.0,0.3]
[1642262585420,0.48256508,43342.0,43341.0,0.3]
[1642262585620,0.95720308,43342.0,43341.0,0.3]
[1642262585820,0.95520308,43342.0,43341.0,0.3]
[1642262586026,1.00277891,43342.0,43341.0,0.24768486]
[1642262586523,1.3392379,43342.0,43341.0,0.24768486]
[1642262586722,1.34636019,43342.0,43341.0,0.24768486]
[1642262587221,1.07599726,43342.0,43341.0,0.24768486]
[1642262587619,1.07399726,43342.0,43341.0,0.34768486]
[1642262587824,1.47399726,43342.0,43341.0,0.34768486]
[1642262588220,1.47199726,43342.0,43341.0,0.34768486]
[1642262588420,1.07199726,43342.0,43341.0,0.34768486]
[1642262588872,1.06999726,43342.0,43341.0,0.34768486]
[1642262589372,1.15201546,43342.0,43341.0,0.34768486]
[1642262589571,1.06799726,43342.0,43341.0,0.24768486]
[1642262589770,1.46799726,43342.0,43341.0,0.24768486]
[1642262589973,1.06799726,43342.0,43341.0,0.24768486]
[1642262590172,1.06599726,43342.0,43341.0,0.24768486]
[1642262590774,1.06399726,43342.0,43341.0,0.34768486]
[1642262591374,1.06199726,43342.0,43341.0,0.34768486]
[1642262592176,1.05999726,43342.0,43341.0,0.34768486]
[1642262592823,1.05799726,43342.0,43341.0,0.34768486]
[1642262593025,1.01169726,43342.0,43341.0,0.34768486]
[1642262593221,1.09524111,43342.0,43341.0,0.34768486]
[1642262593422,1.01169726,43342.0,43341.0,0.34768486]
[1642262594224,1.00969726,43342.0,43341.0,0.34768486]
[1642262594822,1.00769726,43342.0,43341.0,0.34768486]
[1642262595427,1.12349726,43342.0,43341.0,0.34768486]
[1642262597472,0.68503827,43342.0,43341.0,0.34768486]
[1642262597671,0.73133827,43342.0,43341.0,0.34768486]
[1642262598070,0.56923827,43342.0,43341.0,0.23188486]
[1642262598473,1.09953341,43342.0,43341.0,0.23188486]
[1642262598673,1.1471311,43342.0,43341.0,0.23188486]
[1642262598872,1.2471311,43342.0,43341.0,0.23188486]
[1642262599471,1.25410266,43342.0,43341.0,0.23188486]
[1642262600128,0.90280497,43342.0,43341.0,0.23188486]
[1642262600528,1.85280497,43342.0,43341.0,0.02608127]
[1642262600729,1.25280497,43342.0,43341.0,0.02608127]
[1642262601129,0.90280497,43342.0,43341.0,0.02608127]
[1642262601334,2.15280497,43342.0,43341.0,8.127e-05]
[1642262601534,0.90280497,43342.0,43341.0,8.127e-05]
[1642262601731,1.35280497,43342.0,43341.0,8.127e-05]
[1642262601930,1.94160198,43342.0,43341.0,8.127e-05]
[1642262602130,1.49160198,43342.0,43341.0,8.127e-05]
[1642262603132,0.90280497,43342.0,43341.0,8.127e-05]
[1642262603573,1.20280497,43342.0,43341.0,8.127e-05]
[1642262603768,0.90280497,43342.0,43341.0,8.127e-05]
[1642262603969,1.49160198,43342.0,43341.0,8.127e-05]
[1642262604570,1.49746859,43342.0,43341.0,8.127e-05]
[1642262605570,1.84746859,43342.0,43341.0,8.127e-05]
[1642262605771,1.84746859,43342.0,43328.0,0.0005336]
[1642262605772,0.27276013,43336.0,43328.0,0.0005336]
[1642262605972,0.057723,43333.0,43328.0,0.0005336]